fUST/lending_fUST_20251215
["ID","MTS","AMOUNT","RATE_DAILY","PERIOD"]
[398536285,1765806114263,-312.91,0.000102,2]
[398536286,1765806114293,-312.91,0.000102,2]
[398536287,1765806114325,-312.91,0.000103,2]
[398536288,1765806114354,-312.91,0.000104,2]
[398536289,1765806114383,-312.91,0.000105,2]
[398536290,1765806114413,-312.91,0.000106,2]
[398536291,1765806114442,-312.91,0.000107,2]
[398536292,1765806114474,-312.91,0.000107,2]
[398536293,1765806114504,-312.91,0.000108,2]
[398536294,1765806114534,-312.91,0.000109,2]
[398536295,1765806114562,-957.14755133,0.00010995,2]
[398536296,1765806117939,-153.0347189,0.00010995,2]
[398536297,1765806117968,-312.91,0.00011,2]
[398536298,1765806117995,-417.74186787,0.00011081,2]
[398536299,1765806118023,-312.91,0.000111,2]
[398536300,1765806118054,-312.91,0.000111,2]
[398536301,1765806118083,-343.0,0.00011199,2]
[398536302,1765806118113,-312.91,0.000112,2]
[398536303,1765806118143,-312.91,0.000113,2]
[398536304,1765806118169,-1110.18227023,0.00011342,2]
[398536305,1765806118196,-312.91,0.000114,2]
[398536306,1765806118222,-300.0,0.00011418,2]
[398536307,1765806118248,-698.3401,0.00011418,2]
[398536308,1765806131446,-275.0,0.00011418,2]
[398536309,1765806131479,-1200.0,0.00011419,2]
[398536310,1765806131509,-500.0,0.00011419,2]
[398536311,1765806131536,-500.0,0.00011419,2]
[398536312,1765806131564,-500.0,0.00011419,2]
[398536313,1765806131591,-500.0,0.00011419,2]
[398536314,1765806131620,-500.0,0.00011419,2]
[398536315,1765806131649,-500.0,0.00011419,2]
[398536316,1765806131684,-500.0,0.00011419,2]
[398536317,1765806131847,-246.97750035,0.00011419,2]
[398536318,1765806131876,-500.0,0.00011419,2]
[398536319,1765806131907,-500.0,0.00011419,2]
[398536320,1765806131936,-500.0,0.00011419,2]
[398536321,1765806131965,-500.0,0.00011419,2]
[398536322,1765806131994,-500.0,0.00011419,2]
[398536323,1765806132023,-500.0,0.00011419,2]
[398536324,1765806132055,-500.0,0.00011419,2]
[398536325,1765806132086,-500.0,0.00011419,2]
[398536326,1765806132116,-500.0,0.00011419,2]
[398536327,1765806132147,-6.0549993,0.00011419,2]
[398536328,1765806141814,-493.9450007,0.00011419,2]
[398536329,1765806141843,-500.0,0.00011419,2]
[398536330,1765806141873,-500.0,0.00011419,2]
[398536331,1765806141901,-500.0,0.00011419,2]
[398536332,1765806141929,-500.0,0.00011419,2]
[398536333,1765806141957,-500.0,0.00011419,2]
[398536334,1765806141985,-500.0,0.00011419,2]
[398536335,1765806142013,-638.19472639,0.00011419,2]
[398536336,1765806142418,-326.43349442,0.00011422,2]
[398536337,1765806149558,-3969.78898318,0.00011422,2]
[398536338,1765806178298,150.0,7.299e-05,2]
[398536339,1765806178793,150.0,7.647e-05,2]
[398536340,1765806179166,150.0,7.994e-05,2]
[398536341,1765806179653,150.0,8.342e-05,2]
[398536342,1765806180043,150.0,8.689e-05,2]
[398536343,1765806191242,216.95,0.0001,2]
[398536344,1765806191687,216.95,0.000101,2]
[398536345,1765806192082,216.95,0.000102,2]
[398536346,1765806192481,216.95,0.000102,2]
[398536347,1765806193073,216.95,0.000103,2]
[398536348,1765806193288,216.95,0.000104,2]
[398536349,1765806193665,8.73203364,0.000105,2]
[398536350,1765806193688,208.21796636,0.000105,2]
[398536351,1765806194224,216.95,0.000106,2]
[398536352,1765806194358,216.95,0.000107,2]
[398536353,1765806194416,201.58632468,0.0001108,2]
[398536354,1765806194849,216.95,0.000107,2]
[398536355,1765806195535,216.95,0.000108,2]
[398536356,1765806195957,216.95,0.000109,2]
[398536357,1765806196342,216.95,0.00011,2]
[398536358,1765806196758,216.95,0.000111,2]
[398536359,1765806197117,216.95,0.000111,2]
[398536360,1765806197503,216.95,0.000112,2]
[398536361,1765806198374,216.95,0.000113,2]
[398536362,1765806198992,216.95,0.000114,2]
[398536363,1765806222189,2797.0,0.00014,30]
[398536364,1765806244641,150.0,6.938e-05,2]
[398536365,1765806245043,150.0,7.268e-05,2]
[398536366,1765806245548,150.0,7.599e-05,2]
[398536367,1765806246076,150.0,7.929e-05,2]
[398536368,1765806246987,150.0,8.259e-05,2]
[398536369,1765806258635,151.0,0.000101,2]
[398536370,1765806259139,151.0,0.000102,2]
[398536371,1765806259548,151.0,0.000103,2]
[398536372,1765806259957,151.0,0.000104,2]
[398536373,1765806260368,151.0,0.000104,2]
[398536374,1765806260791,151.0,0.000105,2]
[398536375,1765806261179,151.0,0.000106,2]
[398536376,1765806261589,151.0,0.000107,2]
[398536377,1765806262008,151.0,0.000108,2]
[398536378,1765806262555,151.0,0.000109,2]
[398536379,1765806262737,151.0,0.000109,2]
[398536380,1765806263129,151.0,0.00011,2]
[398536381,1765806263687,151.0,0.000111,2]
[398536382,1765806264143,151.0,0.000112,2]
[398536383,1765806264530,151.0,0.000113,2]
[398536384,1765806264962,151.0,0.000114,2]
[398536385,1765806311524,150.0,7.159e-05,2]
[398536386,1765806311947,150.0,7.5e-05,2]
[398536387,1765806342486,150.0,8.182e-05,2]
[398536388,1765806342960,178.86,8.523e-05,2]
[398536389,1765806343395,214.63,8.864e-05,2]
[398536390,1765806344090,250.4,9.205e-05,2]
[398536391,1765806344454,286.18,9.546e-05,2]
[398536392,1765806344696,150.0,7.841e-05,2]
[398536393,1765806344951,321.95,9.886e-05,2]
[398536394,1765806345406,357.72,0.00010227,2]
[398536396,1765806415732,150.0,7.123e-05,2]
[398536397,1765806416035,150.0,7.462e-05,2]
[398536398,1765806416451,150.0,7.801e-05,2]
[398536399,1765806416948,150.0,8.141e-05,2]
[398536400,1765806417390,150.0,8.48e-05,2]
[398536401,1765806417846,150.0,8.819e-05,2]
[398536402,1765806418685,150.0,9.158e-05,2]
[398536403,1765806419044,170.77,9.497e-05,2]
[398536404,1765806419176,192.11,9.837e-05,2]
[398536405,1765806419598,213.46,0.00010176,2]
[398536406,1765806427583,169.214066,0.00010325,2]
[398536407,1765806427769,169.214066,0.00010325,120]
[398536408,1765806457160,-210.79858592,0.00011486,2]
[398536409,1765806484747,150.0,7.116e-05,2]
[398536410,1765806485283,150.0,7.455e-05,2]
[398536411,1765806485787,150.0,7.793e-05,2]
[398536412,1765806486947,150.0,8.132e-05,2]
[398536413,1765806487197,150.0,8.471e-05,2]
[398536414,1765806487398,150.0,8.81e-05,2]
[398536415,1765806517377,493.7627524,0.00010563,2]
[398536416,1765806517848,228.6896903,0.00010563,2]
[398536417,1765806552388,150.0,7.135e-05,2]
[398536418,1765806552780,150.0,7.475e-05,2]
[398536419,1765806553295,150.0,7.814e-05,2]
[398536420,1765806553808,150.0,8.154e-05,2]
[398536421,1765806554215,150.0,8.494e-05,2]
[398536422,1765806561935,2351.27323588,0.00011418,2]
[398536423,1765806605852,157.242853,0.00011322,2]
[398536424,1765806611993,-400.0,0.00015,30]
[398536425,1765806619439,156.72,7.132e-05,2]
[398536426,1765806619937,313.43,7.472e-05,2]
[398536427,1765806620424,470.15,7.812e-05,2]
[398536428,1765806620834,626.86,8.151e-05,2]
[398536429,1765806621358,783.58,8.491e-05,2]
[398536430,1765806621818,940.29,8.83e-05,2]
[398536431,1765806622230,1097.01,9.17e-05,2]
[398536432,1765806622763,309.40429658,9.51e-05,2]
[398536433,1765806622793,944.31570342,9.51e-05,2]
[398536434,1765806623986,1410.44,9.849e-05,2]
[398536435,1765806624235,1567.15,0.00010189,2]
[398536458,1765806632443,-368.62687799,0.00011557,2]
[398536589,1765806641257,-0.00589188,0.00011557,2]
[398536611,1765806662767,6078.10429658,0.00011464,2]
[398536612,1765806662795,10000.01,0.00011464,2]
[398536613,1765806662823,10000.01,0.00011464,2]
[398536614,1765806662849,10000.01,0.00011464,2]
[398536615,1765806662879,10000.01,0.00011464,2]
[398536616,1765806662905,10000.01,0.00011464,2]
[398536617,1765806662931,10000.01,0.00011464,2]
[398536618,1765806662957,10000.01,0.00011464,2]
[398536619,1765806662982,10000.01,0.00011464,2]
[398536620,1765806663006,10000.01,0.00011464,2]
[398536621,1765806699425,186.42,7.169e-05,2]
[398536622,1765806699782,372.85,7.51e-05,2]
[398536623,1765806700266,559.27,7.852e-05,2]
[398536624,1765806700771,745.69,8.193e-05,2]
[398536625,1765806717596,-446.52350178,8.534e-05,2]
[398536626,1765806719604,-168.8721681,8.534e-05,2]
[398536627,1765806722728,-316.72433012,8.534e-05,2]
[398536628,1765806722755,-74.17334345,8.876e-05,2]
[398536629,1765806724235,-314.16885963,8.876e-05,2]
[398536630,1765806726258,-277.03866642,8.876e-05,2]
[398536631,1765806729833,-153.68,8.876e-05,2]
[398536632,1765806731893,-201.62989558,8.876e-05,2]
[398536633,1765806733518,-97.84923492,8.876e-05,2]
[398536634,1765806733542,-125.11209866,9.217e-05,2]
[398536635,1765806735960,-446.20871377,9.217e-05,2]
[398536636,1765806739493,-211.02778156,9.217e-05,2]
[398536637,1765806742360,-301.57010704,9.217e-05,2]
[398536638,1765806749988,-221.04129897,9.217e-05,2]
[398536639,1765806750021,-1491.39,9.558e-05,2]
[398536640,1765806750054,-1677.81,9.9e-05,2]
[398536641,1765806750083,-179.25,0.0001,2]
[398536642,1765806750115,-996.79740206,0.00010241,2]
[398536643,1765806750217,-867.43259794,0.00010241,2]
[398536644,1765806750245,-1269.07423349,0.000106,2]
[398536645,1765806750274,-1269.07423349,0.00011117,2]
[398536646,1765806750303,-747.6196605,0.00011178,2]
[398536647,1765806777958,150.0,7.202e-05,2]
[398536648,1765806778142,150.0,7.545e-05,2]
[398536649,1765806778643,167.78,7.888e-05,2]
[398536650,1765806779173,223.71,8.231e-05,2]
[398536651,1765806781439,-279.64,8.574e-05,2]
[398536652,1765806781470,-335.56,8.917e-05,2]
[398536653,1765806781502,-391.49,9.26e-05,2]
[398536654,1765806781532,-447.42,9.603e-05,2]
[398536655,1765806781673,-503.34,9.946e-05,2]
[398536656,1765806782320,-559.27,0.00010289,2]
[398536657,1765806782429,-6480.50792826,0.00010557,2]
[398536658,1765806782462,-1029.28031356,0.00010557,2]
[398536659,1765806782494,-7941.44937288,0.00010557,2]
[398536660,1765806782504,-1029.28031356,0.000106,2]
[398536661,1765806782522,-80.32389739,0.000106,2]
[398536662,1765806782531,-300.0,0.00010767,2]
[398536663,1765806782540,-178.94610261,0.00010767,2]
[398536664,1765806782572,-121.05389739,0.00010767,2]
[398536665,1765806782581,-300.0,0.00010767,2]
[398536666,1765806782591,-300.0,0.00010767,2]
[398536667,1765806782600,-300.0,0.00010767,2]
[398536668,1765806782610,-300.0,0.00010767,2]
[398536669,1765806782619,-300.0,0.00010767,2]
[398536670,1765806782629,-300.0,0.00010767,2]
[398536671,1765806782639,-300.0,0.00010767,2]
[398536672,1765806782648,-300.0,0.00010767,2]
[398536673,1765806782658,-300.0,0.00010767,2]
[398536674,1765806782668,-300.0,0.00010767,2]
[398536675,1765806782679,-300.0,0.00010767,2]
[398536676,1765806782688,-300.0,0.00010767,2]
[398536677,1765806782698,-300.0,0.00010767,2]
[398536678,1765806782708,-600.0,0.00010981,2]
[398536679,1765806782717,-1109.60421095,0.00011114,2]
[398536680,1765806782727,-366.91748475,0.00011177,2]
[398536681,1765806782736,-471.88638893,0.00011177,2]
[398536682,1765806782745,-500.0,0.00011177,2]
[398536683,1765806782755,-404.24385849,0.00011177,2]
[398536684,1765806782769,-500.0,0.00011177,2]
[398536685,1765806782778,-500.0,0.00011177,2]
[398536686,1765806782788,-197.65873817,0.00011177,2]
[398536687,1765806782799,-210.10542132,0.00011252,2]
[398536688,1765806782848,-3263.31318458,0.00011252,2]
[398536689,1765806782877,-199.83316621,0.00011463,2]
[398536690,1765806782906,-673.71729842,0.00011463,2]
[398536691,1765806782955,-1726.28270158,0.00011463,2]
[398536692,1765806782966,-300.0,0.00011463,2]
[398536693,1765806782975,-2807.58333565,0.00011464,2]
[398536694,1765806783091,-3263.31318458,0.00011464,2]
[398536695,1765806783114,-199.83316621,0.00011464,2]
[398536696,1765806783129,-2400.0,0.00011464,2]
[398536697,1765806783210,-10000.01,0.00011464,2]
[398536698,1765806787055,-1200.0,0.00010556,2]
[398536699,1765806787091,-7600.01,0.00011464,2]
[398536700,1765806787360,-10000.01,0.00011464,2]
[398536701,1765806787715,-10000.01,0.00011464,2]
[398536702,1765806787835,-10000.01,0.00011464,2]
[398536705,1765806854265,150.0,7.51e-05,2]
[398536706,1765806855090,150.0,7.868e-05,2]
[398536707,1765806855361,150.0,8.226e-05,2]
[398536708,1765806867122,-150.0,8.583e-05,2]
[398536709,1765806867171,-77.28232643,8.941e-05,2]
[398536710,1765806869813,-95.42767357,8.941e-05,2]
[398536711,1765806869836,-112.99839916,9.298e-05,2]
[398536712,1765806912990,-94.25160084,9.298e-05,2]
[398536713,1765806913026,-241.79,9.656e-05,2]
[398536714,1765806913062,-276.33,0.00010014,2]
[398536715,1765806913096,-310.87,0.00010371,2]
[398536716,1765806913128,-300.0,0.00010645,2]
[398536717,1765806913326,-7553.52679832,0.00010646,2]
[398536718,1765806927929,150.0,7.52e-05,2]
[398536719,1765806928136,150.0,7.878e-05,2]
[398536720,1765806928536,208.97,8.236e-05,2]
[398536721,1765806929031,278.63,8.594e-05,2]
[398536722,1765806929629,348.29,8.952e-05,2]
[398536723,1765806930147,417.94,9.31e-05,2]
[398536724,1765806930684,487.6,9.669e-05,2]
[398536725,1765806931036,557.26,0.00010027,2]
[398536726,1765806931521,626.92,0.00010385,2]
[398536727,1765806934611,1200.0,0.00010645,2]
[398536728,1765807006358,150.0,7.522e-05,2]
[398536729,1765807006896,150.0,7.88e-05,2]
[398536730,1765807007403,150.0,8.238e-05,2]
[398536731,1765807007878,150.0,8.596e-05,2]
[398536732,1765807008534,171.66,8.954e-05,2]
[398536733,1765807008852,205.99,9.312e-05,2]
[398536734,1765807009340,240.32,9.671e-05,2]
[398536735,1765807009735,274.65,0.00010029,2]
[398536736,1765807010237,308.98,0.00010387,2]
[398536737,1765807079575,150.0,7.517e-05,2]
[398536738,1765807080354,150.0,7.875e-05,2]
[398536739,1765807080585,150.0,8.233e-05,2]
[398536740,1765807080918,150.0,8.591e-05,2]
[398536741,1765807081418,150.0,8.948e-05,2]
[398536742,1765807081862,150.0,9.306e-05,2]
[398536743,1765807082358,172.82,9.664e-05,2]
[398536744,1765807082891,197.5,0.00010022,2]
[398536745,1765807083406,222.19,0.0001038,2]
[398536747,1765807151017,150.0,7.793e-05,2]
[398536748,1765807151509,150.0,8.164e-05,2]
[398536749,1765807151997,150.0,8.535e-05,2]
[398536750,1765807152660,150.0,8.906e-05,2]
[398536751,1765807153134,150.0,9.277e-05,2]
[398536752,1765807153535,154.69,9.648e-05,2]
[398536753,1765807154013,180.47,0.00010019,2]
[398536754,1765807154712,206.26,0.0001039,2]
[398536755,1765807188802,-2278.11389868,0.00010646,2]
[398536756,1765807188831,-206.5826142,0.00010694,2]
[398536757,1765807188865,-232.04,0.00010762,2]
[398536758,1765807188894,-283.0,0.00010857,2]
[398536759,1765807188923,-300.0,0.00010857,2]
[398536760,1765807188957,-300.0,0.00010858,2]
[398536761,1765807188989,-300.0,0.00010858,2]
[398536762,1765807189017,-300.0,0.00010858,2]
[398536763,1765807189048,-300.0,0.00010858,2]
[398536764,1765807189081,-300.0,0.00010858,2]
[398536765,1765807189111,-100.53697424,0.00010858,2]
[398536766,1765807201311,988.87,0.00010364,2]
[398536767,1765807201334,10000.01,0.00010364,2]
[398536768,1765807201356,12.6017902,0.00010364,2]
[398536769,1765807223114,-287.0,0.00010857,2]
[398536770,1765807223147,-572.0,0.00010857,2]
[398536771,1765807223182,-1200.0,0.00010857,2]
[398536772,1765807223215,-199.46302576,0.00010858,2]
[398536773,1765807223251,-300.0,0.00010858,2]
[398536774,1765807223282,-300.0,0.00010858,2]
[398536775,1765807223314,-300.0,0.00010858,2]
[398536776,1765807223344,-300.0,0.00010858,2]
[398536777,1765807223374,-300.0,0.00010858,2]
[398536778,1765807223402,-300.0,0.00010858,2]
[398536779,1765807223431,-300.0,0.00010858,2]
[398536780,1765807223460,-300.0,0.00010858,2]
[398536781,1765807223488,-300.0,0.00010858,2]
[398536782,1765807224956,83.08394848,7.175e-05,2]
[398536783,1765807224983,66.91605152,7.175e-05,2]
[398536784,1765807225468,150.0,7.517e-05,2]
[398536785,1765807225903,150.0,7.858e-05,2]
[398536786,1765807226604,150.0,8.2e-05,2]
[398536787,1765807226794,150.0,8.542e-05,2]
[398536788,1765807227286,150.0,8.883e-05,2]
[398536789,1765807227756,150.0,9.225e-05,2]
[398536790,1765807228268,150.0,9.566e-05,2]
[398536791,1765807239422,349.27392934,0.00010857,2]
[398536792,1765807239458,577.25471533,0.00010857,2]
[398536793,1765807245424,-8082.59607801,0.00010858,2]
[398536794,1765807245447,-10000.01,0.00010858,2]
[398536795,1765807245509,-10000.01,0.00010858,2]
[398536796,1765807251231,-10000.01,0.00010858,2]
[398536797,1765807251257,-10000.01,0.00010858,2]
[398536798,1765807262279,500.0,0.00010857,2]
[398536799,1765807262334,461.85175893,0.00010857,2]
[398536800,1765807277754,9038.15824107,0.00010379,2]
[398536801,1765807277778,10000.01,0.00010379,2]
[398536802,1765807277802,10000.01,0.00010379,2]
[398536803,1765807277825,10000.01,0.00010379,2]
[398536804,1765807277848,10000.01,0.00010379,2]
[398536805,1765807277871,10000.01,0.00010379,2]
[398536806,1765807277894,10000.01,0.00010379,2]
[398536807,1765807277917,10000.01,0.00010379,2]
[398536808,1765807277940,10000.01,0.00010379,2]
[398536809,1765807277962,10000.01,0.00010379,2]
[398536810,1765807292971,150.0,7.795e-05,2]
[398536811,1765807293320,150.0,8.166e-05,2]
[398536812,1765807302080,-164.86,8.537e-05,2]
[398536813,1765807302106,-0.21481249,8.909e-05,2]
[398536814,1765807304118,-219.59518751,8.909e-05,2]
[398536815,1765807304144,-96.45944471,9.28e-05,2]
[398536817,1765807316281,-178.30055529,9.28e-05,2]
[398536818,1765807317391,-241.60939529,9.651e-05,2]
[398536819,1765807331652,-88.10060471,9.651e-05,2]
[398536820,1765807347834,-384.67,0.00010022,2]
[398536821,1765807372144,261.82,7.47e-05,2]
[398536822,1765807372589,523.64,7.825e-05,2]
[398536823,1765807373092,785.46,8.181e-05,2]
[398536824,1765807373591,1047.28,8.537e-05,2]
[398536825,1765807374136,1309.1,8.892e-05,2]
[398536827,1765807374626,1570.92,9.248e-05,2]
[398536828,1765807375105,1832.74,9.604e-05,2]
[398536829,1765807375584,1899.71,9.959e-05,2]
[398536830,1765807375608,194.85,9.959e-05,2]
[398536831,1765807381266,-201.8946193,0.00010175,2]
[398536833,1765807409109,-2356.38,0.00010315,2]
[398536834,1765807409457,-3240.92897837,0.00010379,2]
[398536835,1765807409640,-3518.15204326,0.00010379,2]
[398536836,1765807416047,-745.9759812,0.00010379,2]
[398536837,1765807416176,-1491.9519624,0.00010379,2]
[398536838,1765807422084,-2983.9039248,0.00010379,2]
[398536839,1765807422334,-4032.2021504,0.00010379,2]
[398536840,1765807422364,-202.45096192,0.00010619,2]
[398536841,1765807422393,-344.23209905,0.00010642,3]
[398536842,1765807422423,-300.0,0.0001067,2]
[398536843,1765807422546,-2618.2,0.00010671,2]
[398536844,1765807422574,-1917.36392199,0.00011074,2]
[398536845,1765807422612,-300.0,0.00011074,2]
[398536846,1765807422643,-28.88215602,0.00011074,2]
[398536847,1765807428024,-271.11784398,0.00011074,2]
[398536848,1765807428056,-300.0,0.00011074,2]
[398536849,1765807428088,-300.0,0.00011074,2]
[398536850,1765807428119,-300.0,0.00011074,2]
[398536851,1765807428149,-300.0,0.00011074,2]
[398536852,1765807428188,-300.0,0.00011074,2]
[398536853,1765807428220,-300.0,0.00011074,2]
[398536854,1765807428251,-300.0,0.00011074,2]
[398536855,1765807428283,-300.0,0.00011074,2]
[398536856,1765807428313,-300.0,0.00011074,2]
[398536857,1765807428344,-300.0,0.00011074,2]
[398536858,1765807428375,-300.0,0.00011074,2]
[398536859,1765807428410,-300.0,0.00011074,2]
[398536860,1765807428439,-300.0,0.00011074,2]
[398536861,1765807428468,-209.63,0.000111,2]
[398536862,1765807428494,-345.585,0.00011177,2]
[398536863,1765807428523,-209.63,0.000112,2]
[398536864,1765807429370,-1194.9172649,0.00011278,2]
[398536865,1765807429404,-600.0,0.00011294,2]
[398536866,1765807429435,-1311.8041104,0.000113,2]
[398536867,1765807429466,-209.63,0.000113,2]
[398536868,1765807429500,-209.63,0.000113,2]
[398536869,1765807429532,-1376.92839619,0.00011319,3]
[398536870,1765807434783,-212.80933826,0.00011319,3]
[398536871,1765807434814,-2472.46625095,0.00011376,2]
[398536872,1765807434847,-300.3678215,0.000114,2]
[398536873,1765807434878,-209.63,0.000114,2]
[398536874,1765807447567,-300.0,0.00011463,2]
[398536875,1765807450766,150.0,7.118e-05,2]
[398536876,1765807451188,157.09,7.457e-05,2]
[398536877,1765807451695,235.64,7.796e-05,2]
[398536878,1765807452194,314.18,8.135e-05,2]
[398536879,1765807453778,-392.73,8.474e-05,2]
[398536880,1765807454057,-471.28,8.813e-05,2]
[398536881,1765807460620,-549.82,9.152e-05,2]
[398536882,1765807460658,-628.37,9.491e-05,2]
[398536883,1765807460695,-706.92,9.83e-05,2]
[398536884,1765807460727,-785.46,0.00010169,2]
[398536885,1765807466548,-8675.87958882,0.00011464,2]
[398536886,1765807467170,-10000.01,0.00011464,2]
[398536887,1765807529077,150.0,7.807e-05,2]
[398536888,1765807529464,150.0,8.178e-05,2]
[398536889,1765807529997,150.0,8.55e-05,2]
[398536890,1765807530429,150.0,8.922e-05,2]
[398536891,1765807530831,150.0,9.294e-05,2]
[398536892,1765807531258,150.0,9.665e-05,2]
[398536893,1765807531751,158.58,0.00010037,2]
[398536894,1765807532205,181.24,0.00010409,2]
[398536895,1765807533184,203.89,0.00010781,2]
[398536897,1765807558830,3394.4552118,0.00010897,2]
[398536899,1765807593273,2822.895218,0.00010897,2]
[398536900,1765807599521,150.0,7.485e-05,2]
[398536901,1765807599944,150.0,7.841e-05,2]
[398536902,1765807600438,150.0,8.198e-05,2]
[398536903,1765807600908,178.08,8.554e-05,2]
[398536904,1765807601325,222.6,8.91e-05,2]
[398536905,1765807601812,267.12,9.267e-05,2]
[398536906,1765807602276,311.64,9.623e-05,2]
[398536907,1765807615753,356.16,9.98e-05,2]
[398536908,1765807616250,400.68,0.00010336,2]
[398536909,1765807637675,152.6695702,0.00010693,2]
[398536910,1765807637700,292.5304298,0.00010693,2]
[398536911,1765807707278,150.0,7.788e-05,2]
[398536912,1765807707814,150.0,8.159e-05,2]
[398536913,1765807708276,150.0,8.53e-05,2]
[398536914,1765807708674,150.0,8.901e-05,2]
[398536915,1765807709073,150.0,9.272e-05,2]
[398536916,1765807709574,150.0,9.643e-05,2]
[398536917,1765807709953,150.0,0.00010013,2]
[398536918,1765807711215,150.0,0.00010384,2]
[398536919,1765807711807,167.99,0.00010755,2]
[398536920,1765807752462,-392.61,0.000111,2]
[398536921,1765807752483,-202.07661336,0.0001115,2]
[398536922,1765807752505,-392.61,0.000112,2]
[398536923,1765807752525,-392.61,0.000113,2]
[398536924,1765807752546,-392.61,0.000113,2]
[398536925,1765807752568,-3127.48338664,0.00011364,2]
[398536954,1765807831610,-232.87,0.000111,2]
[398536956,1765807831620,-232.87,0.000112,2]
[398536958,1765807831629,-232.87,0.000113,2]
[398536960,1765807831638,-232.87,0.000113,2]
[398536962,1765807831647,-148.88649452,0.00011363,2]
[398536964,1765807831658,-151.11350548,0.00011363,2]
[398536966,1765807831667,-360.98249452,0.00011364,2]
[398536969,1765807831678,-1044.09221012,0.00011364,2]
[398536992,1765807839986,-3e-08,0.00011364,2]
[398537011,1765807841242,150.0,7.598e-05,2]
[398537012,1765807841444,150.0,7.959e-05,2]
[398537093,1765807906554,150.0,7.15e-05,2]
[398537094,1765807907160,150.0,7.49e-05,2]
[398537097,1765808217698,-1172.5131317,0.00011089,2]
[398537098,1765808217730,-361.2,0.000111,2]
[398537099,1765808217760,-198.03508109,0.00011195,2]
[398537100,1765808217792,-361.2,0.000112,2]
[398537101,1765808217822,-2230.08022083,0.00011286,2]
[398537102,1765808217853,-361.2,0.000113,2]
[398537103,1765808217884,-270.35313276,0.000113,2]
[398537104,1765808218352,-90.84686724,0.000113,2]
[398537105,1765808218384,-220.71154124,0.00011319,3]
[398537106,1765808218416,-305.28651129,0.00011319,3]
[398537107,1765808218449,-164.37976603,0.00011319,3]
[398537108,1765808218480,-553.64373807,0.00011357,2]
[398537109,1765808218512,-300.0,0.00011363,2]
[398537110,1765808219360,-4588.086458,0.00011364,2]
[398537111,1765808219376,-10000.01,0.00011364,2]
[398537112,1765808219590,-10000.01,0.00011364,2]
[398537113,1765808219617,-10000.01,0.00011364,2]
[398537114,1765808219632,-10000.01,0.00011364,2]
[398537115,1765808219646,-10000.01,0.00011364,2]
[398537116,1765808219672,-10000.01,0.00011364,2]
[398537117,1765808227417,-300.0,0.00011363,2]
[398537118,1765808227474,-9400.01,0.00011364,2]
[398537119,1765808227602,-10000.01,0.00011364,2]
[398537120,1765808240283,-10000.01,0.00011364,2]
[398537121,1765808252448,-10000.01,0.00011364,2]
[398537122,1765808370293,-172.9313296,0.00011321,2]
[398537123,1765808370324,-454.61073366,0.00011363,2]
[398537124,1765808370355,-300.0,0.00011363,2]